[Event "FIDE WYCC Girls U18 2023"]
[Site "Montesilvano"]
[Date "2023.11.23"]
[Round "10.7"]
[White "Abrisqueta Zudaire, Leyre"]
[Black "Trifoi, Mihaela-Ioana"]
[Result "1-0"]
[ECO "A13"]
[WhiteElo "2137"]
[BlackElo "2021"]
[Annotator "NA RC"]
[PlyCount "95"]
[EventDate "2023.11.13"]
[EventType "swiss"]
[EventCountry "ITA"]
[SourceTitle "playchess.com"]
[Source "ChessBase"]
[SourceQuality "1"]
[TimeControl "40/5400+30:1800+30"]

1. c4 {[%emt 0:03:19]} e6 {[%emt 0:00:12]} 2. g3 {[%emt 0:00:10]} d5 {[%emt 0:00:12]} 3. Bg2 {[%emt 0:00:10]} Nf6 {[%emt 0:00:19]} 4. Nf3 {[%emt 0:00:12]} c6 {[%emt 0:00:38]} 5. b3 {[%emt 0:12:30]} Be7 {[%emt 0:00:11]} 6. O-O {[%emt 0:00:17]} O-O {[%emt 0:00:07]} 7. d4 {[%emt 0:04:39]} a5 {[%emt 0:00:06]} 8. Nc3 {[%emt 0:00:09]} b6 {[%emt 0:00:48]} 9. Bb2 {[%emt 0:00:37]} Ba6 {[%emt 0:00:12]} 10. Nd2 {[%emt 0:01:34]} b5 {[%emt 0:08:56]} 11. c5 {[%emt 0:00:20]} b4 {[%emt 0:00:26]} 12. Na4 {[%emt 0:00:06]} Nbd7 {[%emt 0:00:19]} 13. Re1 {[%emt 0:01:59]} Re8 {[%emt 0:18:40]} 14. e4 {[%emt 0:07:40]} dxe4 {[%emt 0:01:44]} 15. Nxe4 {[%emt 0:00:25]} Nd5 {[%emt 0:00:29]} 16. Qc2 {[%emt 0:03:10]} Qc7 {[%emt 0:02:06]} 17. Rac1 {[%emt 0:05:46]} Bb5 {[%emt 0:01:43]} 18. Ba1 {[%emt 0:05:04]} Rad8 {[%emt 0:15:05]} 19. Nb2 {[%emt 0:14:36]} N7f6 {[%emt 0:05:56]} 20. Nc4 {[%emt 0:07:12]} Nxe4 {[%emt 0:02:17]} 21. Bxe4 {[%emt 0:00:19]} h6 {[%emt 0:00:25]} 22. Bb2 {[%emt 0:04:21]} Qa7 {[%emt 0:03:49]} 23. Rcd1 {[%emt 0:07:46]} Qc7 {[%emt 0:13:28]} 24. Ra1 {[%emt 0:03:43]} Ra8 {[%emt 0:02:44]} 25. a3 {[%emt 0:03:50]} Nf6 {[%emt 0:05:33]} 26. Bg2 {[%emt 0:02:24]} Nd7 {[%emt 0:00:25]} 27. Qd2 {[%emt 0:04:42]} Bxc4 {[%emt 0:01:01]} 28. bxc4 {[%emt 0:00:01]} bxa3 {[%emt 0:00:35]} 29. Rxa3 {[%emt 0:01:08]} Ra6 {[%emt 0:01:56]} 30. Kh1 {[%emt 0:01:41]} Bf6 {[%emt 0:02:56]} 31. Bc3 {[%emt 0:00:55]} a4 {[%emt 0:00:39]} 32. f4 {[%emt 0:00:20]} Rd8 {[%emt 0:00:26]} 33. Qc2 {[%emt 0:00:10]} Rda8 {[%emt 0:00:27]} 34. Rea1 {[%emt 0:00:17]} Qa7 {[%emt 0:02:31]} 35. Be4 {[%emt 0:00:49]} Be7 {[%emt 0:01:47]} 36. Qg2 {[%emt 0:00:25]} Qc7 {[%emt 0:00:49]} 37. Bc2 {[%emt 0:00:10]} Bf6 {[%emt 0:00:10]} 38. Qf3 {[%emt 0:01:06]} Qb7 {[%emt 0:00:30]} 39. Kg2 {[%emt 0:00:25]} Rd8 {[%emt 0:00:39]} 40. Rxa4 {[%emt 0:00:00]} Rxa4 {[%emt 0:00:00]} 41. Bxa4 {[%emt 0:08:42]} Nb8 {[%emt 0:00:50]} 42. Qe4 {[%emt 0:02:00]} Qc8 {[%emt 0:03:25]} 43. h4 {[%emt 0:01:40]} Na6 {[%emt 0:00:52]} 44. Ra3 {[%emt 0:02:17]} Nb8 {[%emt 0:00:24]} 45. Bc2 {[%emt 0:01:06]} Qd7 {[%emt 0:00:40]} 46. Bb2 {[%emt 0:05:19]} Qb7 {[%emt 0:01:09]} 47. Rb3 {[%emt 0:00:09]} Qa6 {[%emt 0:00:11]} 48. Rxb8 {[%emt 0:03:25]} 1-0

[Event "FIDE WYCC Girls U18 2023"]
[Site "Montesilvano"]
[Date "2023.11.23"]
[Round "10.8"]
[White "Cornileau, Juliette"]
[Black "Obada, Ema"]
[Result "0-1"]
[ECO "E52"]
[WhiteElo "2089"]
[BlackElo "2023"]
[Annotator "NA RC"]
[PlyCount "88"]
[EventDate "2023.11.13"]
[EventType "swiss"]
[EventCountry "ITA"]
[SourceTitle "playchess.com"]
[Source "ChessBase"]
[SourceQuality "1"]
[TimeControl "40/5400+30:1800+30"]

1. d4 {[%emt 0:00:06]} Nf6 {[%emt 0:00:06]} 2. c4 {[%emt 0:00:05]} e6 {[%emt 0:00:05]} 3. Nc3 {[%emt 0:00:09]} Bb4 {[%emt 0:00:07]} 4. e3 {[%emt 0:00:04]} O-O {[%emt 0:00:11]} 5. Bd3 {[%emt 0:00:12]} d5 {[%emt 0:00:08]} 6. Nf3 {[%emt 0:00:17]} b6 {[%emt 0:00:06]} 7. O-O {[%emt 0:04:10]} Ba6 {[%emt 0:00:19]} 8. cxd5 {[%emt 0:02:30]} exd5 {[%emt 0:00:07]} 9. a3 {[%emt 0:15:57]} Bxc3 {[%emt 0:12:08]} 10. bxc3 {[%emt 0:00:45]} Bxd3 {[%emt 0:00:46]} 11. Qxd3 {[%emt 0:00:02]} Nbd7 {[%emt 0:01:29]} 12. c4 {[%emt 0:01:12]} c6 {[%emt 0:00:24]} 13. Bb2 {[%emt 0:07:30]} Re8 {[%emt 0:10:29]} 14. Rac1 {[%emt 0:12:37]} Ne4 {[%emt 0:05:58]} 15. Qb3 {[%emt 0:05:35]} Nf8 {[%emt 0:25:13]} 16. Rc2 {[%emt 0:02:08]} f6 {[%emt 0:00:59]} 17. Rfc1 {[%emt 0:01:53]} Ne6 {[%emt 0:01:25]} 18. Ne1 {[%emt 0:04:47]} dxc4 {[%emt 0:05:26]} 19. Qxc4 {[%emt 0:00:24]} c5 {[%emt 0:00:47]} 20. Nf3 {[%emt 0:11:35]} Kh8 {[%emt 0:01:14]} 21. Nh4 {[%emt 0:04:07]} Qd7 {[%emt 0:08:28]} 22. f3 {[%emt 0:04:01]} Nd6 {[%emt 0:00:27]} 23. Qb3 {[%emt 0:06:42]} c4 {[%emt 0:01:07]} 24. Qc3 {[%emt 0:01:01]} b5 {[%emt 0:00:52]} 25. e4 {[%emt 0:02:14]} Nf4 {[%emt 0:02:28]} 26. e5 {[%emt 0:03:03]} Nf5 {[%emt 0:08:16]} 27. Nxf5 {[%emt 0:00:02]} Qxf5 {[%emt 0:00:03]} 28. Rf1 {[%emt 0:00:53]} Nd5 {[%emt 0:01:13]} 29. Qd2 {[%emt 0:02:45]} Ne3 {[%emt 0:00:24]} 30. Rcc1 {[%emt 0:01:37]} Nxf1 {[%emt 0:00:06]} 31. Rxf1 {[%emt 0:00:02]} fxe5 {[%emt 0:01:58]} 32. dxe5 {[%emt 0:00:23]} Rad8 {[%emt 0:01:13]} 33. Qa5 {[%emt 0:01:02]} Qc2 {[%emt 0:00:36]} 34. Bc3 {[%emt 0:01:01]} a6 {[%emt 0:03:23]} 35. h3 {[%emt 0:01:01]} Rd3 {[%emt 0:01:50]} 36. Bb4 {[%emt 0:00:46]} Rxe5 {[%emt 0:01:25]} 37. Qxa6 {[%emt 0:00:48]} h6 {[%emt 0:01:03]} 38. f4 {[%emt 0:02:33]} Red5 {[%emt 0:02:25]} 39. Qg6 {[%emt 0:00:53]} Qe2 {[%emt 0:01:47]} 40. f5 {[%emt 0:00:00]} Rd1 {[%emt 0:00:00]} 41. Rxd1 {[%emt 0:04:53]} Rxd1+ {[%emt 0:00:27]} 42. Kh2 {[%emt 0:00:04]} Qe5+ {[%emt 0:00:05]} 43. Qg3 {[%emt 0:02:28]} Rh1+ {[%emt 0:00:04]} 44. Kxh1 {[%emt 0:00:09]} Qxg3 {[%emt 0:00:04]} 0-1

[Event "FIDE WYCC Girls U18 2023"]
[Site "Montesilvano"]
[Date "2023.11.23"]
[Round "10.9"]
[White "Margadgua Erdenebayar"]
[Black "Naymanova, Patricie"]
[Result "1/2-1/2"]
[ECO "B23"]
[WhiteElo "2013"]
[BlackElo "2083"]
[Annotator "NA RC"]
[PlyCount "98"]
[EventDate "2023.11.13"]
[EventType "swiss"]
[EventCountry "ITA"]
[SourceTitle "playchess.com"]
[Source "ChessBase"]
[SourceQuality "1"]
[TimeControl "40/5400+30:1800+30"]

1. e4 {[%emt 0:00:15]} c5 {[%emt 0:00:32]} 2. Nc3 {[%emt 0:00:20]} a6 {[%emt 0:00:09]} 3. g3 {[%emt 0:00:20]} b5 {[%emt 0:00:04]} 4. Bg2 {[%emt 0:00:05]} Bb7 {[%emt 0:00:03]} 5. d3 {[%emt 0:00:18]} Nf6 {[%emt 0:01:06]} 6. Nh3 {[%emt 0:04:37]} e6 {[%emt 0:00:09]} 7. O-O {[%emt 0:00:15]} d6 {[%emt 0:01:24]} 8. f4 {[%emt 0:03:02]} Nc6 {[%emt 0:00:13]} 9. Nf2 {[%emt 0:10:02]} Be7 {[%emt 0:10:18]} 10. Ne2 {[%emt 0:04:21]} Qc7 {[%emt 0:06:24]} 11. c3 {[%emt 0:01:39]} O-O {[%emt 0:04:49]} 12. g4 {[%emt 0:02:17]} b4 {[%emt 0:09:45]} 13. Ng3 {[%emt 0:13:26]} Nd7 {[%emt 0:03:23]} 14. f5 {[%emt 0:03:48]} bxc3 {[%emt 0:05:37]} 15. bxc3 {[%emt 0:00:54]} Bf6 {[%emt 0:00:09]} 16. Bd2 {[%emt 0:07:19]} Be5 {[%emt 0:05:34]} 17. g5 {[%emt 0:04:47]} Bxg3 {[%emt 0:12:20]} 18. hxg3 {[%emt 0:00:06]} exf5 {[%emt 0:00:03]} 19. Qh5 {[%emt 0:04:38]} g6 {[%emt 0:02:39]} 20. Qh3 {[%emt 0:00:42]} Ne7 {[%emt 0:04:30]} 21. Rab1 {[%emt 0:06:26]} Bc6 {[%emt 0:00:51]} 22. d4 {[%emt 0:00:34]} fxe4 {[%emt 0:01:48]} 23. Bxe4 {[%emt 0:01:04]} d5 {[%emt 0:00:29]} 24. Bf3 {[%emt 0:01:37]} f5 {[%emt 0:05:03]} 25. gxf6 {[%emt 0:05:31]} Nxf6 {[%emt 0:00:05]} 26. Qe6+ {[%emt 0:00:56]} Kg7 {[%emt 0:00:20]} 27. Bf4 {[%emt 0:04:05]} Qd7 {[%emt 0:01:37]} 28. Rfe1 Qxe6 {[%emt 0:02:47]} 29. Rxe6 {[%emt 0:00:56]} Kf7 {[%emt 0:00:59]} 30. Rbe1 {[%emt 0:03:27]} Rfe8 {[%emt 0:03:40]} 31. Bg5 {[%emt 0:12:50]} Neg8 {[%emt 0:01:55]} 32. Rxe8 {[%emt 0:00:29]} Rxe8 {[%emt 0:00:06]} 33. Rxe8 {[%emt 0:00:03]} Kxe8 {[%emt 0:00:35]} 34. dxc5 {[%emt 0:00:02]} Ne4 {[%emt 0:04:24]} 35. Nxe4 {[%emt 0:00:09]} dxe4 {[%emt 0:00:01]} 36. Be2 {[%emt 0:00:00]} h6 {[%emt 0:00:14]} 37. Bc4 {[%emt 0:03:57]} hxg5 {[%emt 0:01:06]} 38. Bxg8 {[%emt 0:00:01]} e3 {[%emt 0:01:36]} 39. Kf1 {[%emt 0:00:01]} Bf3 {[%emt 0:00:38]} 40. Bc4 {[%emt 0:00:00]} a5 {[%emt 0:00:00]} 41. a3 {[%emt 0:09:21]} g4 {[%emt 0:01:20]} 42. Bb5+ {[%emt 0:03:30]} Ke7 {[%emt 0:01:26]} 43. Ke1 {[%emt 0:01:11]} Ke6 {[%emt 0:00:55]} 44. Bc4+ {[%emt 0:00:19]} Ke5 {[%emt 0:00:19]} 45. Kf1 {[%emt 0:01:27]} g5 {[%emt 0:01:16]} 46. Ke1 {[%emt 0:00:12]} Kf6 {[%emt 0:03:03]} 47. Bb5 {[%emt 0:00:39]} Ke6 {[%emt 0:00:20]} 48. Bc4+ {[%emt 0:00:13]} Ke5 {[%emt 0:03:46]} 49. Kf1 {[%emt 0:00:33]} Kf6 {[%emt 0:00:26]} 1/2-1/2

[Event "FIDE WYCC Girls U18 2023"]
[Site "Montesilvano"]
[Date "2023.11.23"]
[Round "10.10"]
[White "Nguyen, Thien Ngan"]
[Black "Hakobyan, Astghik"]
[Result "1-0"]
[ECO "B13"]
[WhiteElo "1891"]
[BlackElo "2073"]
[Annotator "NA RC"]
[PlyCount "61"]
[EventDate "2023.11.13"]
[EventType "swiss"]
[EventCountry "ITA"]
[SourceTitle "playchess.com"]
[Source "ChessBase"]
[SourceQuality "1"]
[TimeControl "40/5400+30:1800+30"]

1. e4 {[%emt 0:00:06]} c6 {[%emt 0:00:13]} 2. d4 {[%emt 0:00:08]} d5 {[%emt 0:00:04]} 3. exd5 {[%emt 0:00:09]} cxd5 {[%emt 0:00:04]} 4. Bd3 {[%emt 0:00:18]} Nf6 {[%emt 0:00:09]} 5. c3 {[%emt 0:00:06]} Bg4 {[%emt 0:00:37]} 6. Qb3 {[%emt 0:00:15]} Qc7 {[%emt 0:00:15]} 7. h3 {[%emt 0:01:40]} Bh5 {[%emt 0:01:54]} 8. Bg5 {[%emt 0:15:27]} e6 {[%emt 0:06:14]} 9. Nd2 {[%emt 0:03:11]} Bd6 {[%emt 0:05:26]} 10. Ngf3 {[%emt 0:09:48]} Nc6 {[%emt 0:01:05]} 11. O-O {[%emt 0:01:17]} O-O {[%emt 0:03:40]} 12. a4 {[%emt 0:13:18]} Rab8 {[%emt 0:06:50]} 13. Rfe1 {[%emt 0:04:46]} a6 {[%emt 0:10:07]} 14. Qc2 {[%emt 0:17:15]} Bg6 {[%emt 0:05:30]} 15. Bxg6 {[%emt 0:01:14]} hxg6 {[%emt 0:00:02]} 16. Qd3 {[%emt 0:02:00]} Rfc8 {[%emt 0:04:07]} 17. h4 {[%emt 0:09:59]} b5 {[%emt 0:02:53]} 18. axb5 {[%emt 0:01:32]} Rxb5 {[%emt 0:04:32]} 19. b3 {[%emt 0:06:20]} Rb6 {[%emt 0:24:14]} 20. Rec1 {[%emt 0:06:18]} e5 {[%emt 0:01:47]} 21. dxe5 {[%emt 0:02:34]} Nxe5 {[%emt 0:00:19]} 22. Nxe5 {[%emt 0:01:41]} Bxe5 {[%emt 0:00:02]} 23. Rxa6 {[%emt 0:00:59]} Rxa6 {[%emt 0:11:38]} 24. Qxa6 {[%emt 0:00:02]} Ng4 {[%emt 0:01:58]} 25. Qe2 {[%emt 0:01:03]} f5 {[%emt 0:00:33]} 26. Nf3 {[%emt 0:00:38]} Bxc3 {[%emt 0:04:28]} 27. Qe6+ {[%emt 0:00:26]} Kh8 {[%emt 0:01:28]} 28. Qxg6 {[%emt 0:00:56]} Qc5 {[%emt 0:00:57]} 29. Be3 {[%emt 0:00:38]} Qe7 {[%emt 0:03:14]} 30. Bd4 {[%emt 0:00:39]} Re8 {[%emt 0:00:35]} 31. Bxc3 {[%emt 0:00:14]} 1-0

[Event "FIDE WYCC Girls U18 2023"]
[Site "Montesilvano"]
[Date "2023.11.23"]
[Round "10.11"]
[White "Starosta, Martyna"]
[Black "Keerti Shree Reddy"]
[Result "*"]
[ECO "B27"]
[WhiteElo "2208"]
[BlackElo "1741"]
[Annotator "RC"]
[PlyCount "64"]
[EventDate "2023.11.13"]
[EventType "swiss"]
[EventCountry "ITA"]
[SourceTitle "playchess.com"]
[Source "ChessBase"]
[SourceQuality "1"]
[TimeControl "40/5400+30:1800+30"]

1. e4 {[%emt 0:00:03]} c5 {[%emt 0:05:00]} 2. Nf3 {[%emt 0:00:20]} g6 {[%emt 0:00:09]} 3. d4 {[%emt 0:00:05]} cxd4 {[%emt 0:00:05]} 4. Nxd4 {[%emt 0:00:06]} Bg7 {[%emt 0:00:06]} 5. c4 {[%emt 0:00:07]} Nc6 {[%emt 0:00:06]} 6. Be3 {[%emt 0:00:08]} Nf6 {[%emt 0:00:05]} 7. Nc3 {[%emt 0:00:08]} d6 {[%emt 0:00:06]} 8. Be2 {[%emt 0:00:09]} O-O {[%emt 0:00:09]} 9. O-O {[%emt 0:00:18]} Nxd4 {[%emt 0:00:10]} 10. Bxd4 {[%emt 0:00:06]} Bd7 {[%emt 0:00:03]} 11. h3 {[%emt 0:00:18]} Bc6 {[%emt 0:00:15]} 12. Qc2 {[%emt 0:00:06]} Nd7 {[%emt 0:01:14]} 13. Bxg7 {[%emt 0:00:07]} Kxg7 {[%emt 0:00:05]} 14. Rad1 {[%emt 0:00:08]} a5 {[%emt 0:00:50]} 15. Bg4 {[%emt 0:00:05]} b6 {[%emt 0:12:49]} 16. f4 {[%emt 0:12:09]} Nf6 {[%emt 0:16:41]} 17. e5 {[%emt 0:03:44]} Nxg4 {[%emt 0:01:08]} 18. hxg4 {[%emt 0:00:08]} Bd7 {[%emt 0:05:08]} 19. Qe2 {[%emt 0:18:41]} Qc8 {[%emt 0:07:24]} 20. f5 {[%emt 0:00:55]} gxf5 {[%emt 0:05:03]} 21. exd6 {[%emt 0:01:26]} exd6 {[%emt 0:01:36]} 22. Qe7 {[%emt 0:05:22]} h6 {[%emt 0:10:14]} 23. Qxd6 {[%emt 0:20:14]} Be6 {[%emt 0:01:48]} 24. gxf5 {[%emt 0:01:20]} Bxc4 {[%emt 0:00:40]} 25. Rf4 {[%emt 0:00:56]} f6 {[%emt 0:05:20]} 26. Rh4 {[%emt 0:06:21]} Kf7 {[%emt 0:10:57]} 27. Ne4 {[%emt 0:09:51]} Qd8 {[%emt 0:06:29]} 28. Qxd8 {[%emt 0:00:12]} Rfxd8 {[%emt 0:00:52]} 29. Nd6+ {[%emt 0:00:09]} Rxd6 {[%emt 0:01:32]} 30. Rxd6 {[%emt 0:00:05]} Bxa2 {[%emt 0:00:10]} 31. Rxb6 {[%emt 0:00:35]} Bd5 {[%emt 0:00:39]} 32. Rxh6 {[%emt 0:00:11]} Rg8 {[%emt 0:00:13]} *

[Event "FIDE WYCC Girls U18 2023"]
[Site "Montesilvano"]
[Date "2023.11.23"]
[Round "10.12"]
[White "Blanquet, Camille"]
[Black "Mungunzul, Bat-Erdene"]
[Result "1/2-1/2"]
[ECO "D10"]
[WhiteElo "1953"]
[BlackElo "2111"]
[Annotator "NA RC"]
[PlyCount "124"]
[EventDate "2023.11.13"]
[EventType "swiss"]
[EventCountry "ITA"]
[SourceTitle "playchess.com"]
[Source "ChessBase"]
[SourceQuality "1"]
[TimeControl "40/5400+30:1800+30"]

1. d4 {[%emt 0:00:03]} d5 {[%emt 0:00:07]} 2. c4 c6 {[%emt 0:00:10]} 3. cxd5 {[%emt 0:00:30]} cxd5 {[%emt 0:00:10]} 4. Bf4 {[%emt 0:00:14]} Qb6 {[%emt 0:04:37]} 5. Nc3 {[%emt 0:03:57]} Nf6 {[%emt 0:01:02]} 6. e3 {[%emt 0:04:39]} Qxb2 {[%emt 0:05:45]} 7. Bb5+ {[%emt 0:06:32]} Nc6 {[%emt 0:02:12]} 8. Nge2 {[%emt 0:03:21]} Bf5 {[%emt 0:01:29]} 9. O-O {[%emt 0:03:58]} Qa3 {[%emt 0:01:00]} 10. f3 {[%emt 0:17:26]} a6 {[%emt 0:17:29]} 11. g4 {[%emt 0:10:40]} Bd7 {[%emt 0:07:52]} 12. Ba4 {[%emt 0:06:14]} e6 {[%emt 0:05:26]} 13. Rb1 {[%emt 0:02:16]} Na5 {[%emt 0:06:39]} 14. g5 {[%emt 0:08:14]} Bxa4 {[%emt 0:02:39]} 15. Qxa4+ {[%emt 0:01:15]} Qxa4 {[%emt 0:00:14]} 16. Nxa4 {[%emt 0:00:06]} Nd7 {[%emt 0:01:16]} 17. Bc7 {[%emt 0:02:59]} Nc4 {[%emt 0:01:00]} 18. Rxb7 {[%emt 0:00:08]} Nxe3 {[%emt 0:00:32]} 19. Rfb1 {[%emt 0:01:16]} Nc4 {[%emt 0:00:37]} 20. Kf2 {[%emt 0:07:34]} Be7 {[%emt 0:06:35]} 21. Bf4 {[%emt 0:00:28]} Na5 {[%emt 0:02:06]} 22. Nb6 {[%emt 0:05:50]} Nxb6 {[%emt 0:02:45]} 23. R7xb6 {[%emt 0:00:06]} O-O {[%emt 0:00:13]} 24. Rc1 {[%emt 0:01:30]} Nc4 {[%emt 0:07:38]} 25. Rb7 {[%emt 0:00:30]} Ba3 {[%emt 0:00:31]} 26. Rcb1 {[%emt 0:01:11]} Bd6 {[%emt 0:04:57]} 27. Rd7 {[%emt 0:00:53]} Rfd8 {[%emt 0:01:49]} 28. Rbb7 {[%emt 0:00:58]} Rxd7 {[%emt 0:00:41]} 29. Rxd7 {[%emt 0:00:07]} Bxf4 {[%emt 0:00:48]} 30. Nxf4 {[%emt 0:00:06]} Rb8 {[%emt 0:00:08]} 31. Nd3 {[%emt 0:00:30]} a5 {[%emt 0:01:43]} 32. Ra7 {[%emt 0:00:46]} Re8 {[%emt 0:04:12]} 33. Ne5 {[%emt 0:03:59]} Nxe5 {[%emt 0:00:12]} 34. dxe5 {[%emt 0:00:06]} h6 {[%emt 0:00:03]} 35. gxh6 {[%emt 0:02:15]} gxh6 {[%emt 0:00:06]} 36. Rxa5 {[%emt 0:00:06]} Rb8 {[%emt 0:00:15]} 37. Ra7 {[%emt 0:02:06]} Rb2+ {[%emt 0:00:21]} 38. Kg3 {[%emt 0:00:09]} Kg7 {[%emt 0:00:11]} 39. a4 {[%emt 0:01:46]} Kg6 {[%emt 0:00:53]} 40. a5 {[%emt 0:00:00]} Ra2 {[%emt 0:00:00]} 41. a6 {[%emt 0:05:54]} h5 {[%emt 0:02:10]} 42. h4 {[%emt 0:03:07]} Ra4 {[%emt 0:04:52]} 43. Kh3 {[%emt 0:02:49]} d4 {[%emt 0:01:13]} 44. Kg3 {[%emt 0:02:37]} Kf5 {[%emt 0:18:23]} 45. Rxf7+ {[%emt 0:03:42]} Kxe5 {[%emt 0:00:08]} 46. a7 {[%emt 0:01:17]} Kd5 {[%emt 0:00:16]} 47. Rd7+ {[%emt 0:04:50]} Kc4 {[%emt 0:00:21]} 48. f4 {[%emt 0:03:52]} Kd3 {[%emt 0:10:44]} 49. Kf3 {[%emt 0:00:05]} Ra3 {[%emt 0:00:13]} 50. Rc7 {[%emt 0:02:48]} Ra1 {[%emt 0:05:14]} 51. Rd7 {[%emt 0:01:18]} Ra4 {[%emt 0:00:16]} 52. Re7 {[%emt 0:01:00]} Kd2 {[%emt 0:01:29]} 53. Rd7 {[%emt 0:01:31]} d3 {[%emt 0:00:45]} 54. Re7 {[%emt 0:00:37]} Kd1 {[%emt 0:02:47]} 55. Rd7 d2 {[%emt 0:00:15]} 56. Ke3 {[%emt 0:04:09]} Ra3+ {[%emt 0:00:20]} 57. Kf2 {[%emt 0:01:01]} Ra2 {[%emt 0:02:04]} 58. Ke3 {[%emt 0:00:32]} Ra3+ {[%emt 0:00:33]} 59. Kf2 {[%emt 0:00:05]} Kc1 {[%emt 0:00:49]} 60. Rc7+ {[%emt 0:01:08]} Kd1 {[%emt 0:00:19]} 61. Rd7 {[%emt 0:00:10]} Ra2 {[%emt 0:00:32]} 62. Ke3 {[%emt 0:00:32]} Ra3+ {[%emt 0:00:05]} 1/2-1/2

[Event "FIDE WYCC Girls U18 2023"]
[Site "Montesilvano"]
[Date "2023.11.23"]
[Round "10.13"]
[White "Follana Albelda, Lucia"]
[Black "Sevcikova, Lucia"]
[Result "1/2-1/2"]
[ECO "C11"]
[WhiteElo "1946"]
[BlackElo "2047"]
[Annotator "NA RC"]
[PlyCount "94"]
[EventDate "2023.11.13"]
[EventType "swiss"]
[EventCountry "ITA"]
[SourceTitle "playchess.com"]
[Source "ChessBase"]
[SourceQuality "1"]
[TimeControl "40/5400+30:1800+30"]

1. e4 {[%emt 0:03:03]} e6 {[%emt 0:00:05]} 2. d4 {[%emt 0:00:11]} d5 {[%emt 0:00:07]} 3. Nc3 {[%emt 0:00:06]} Nf6 {[%emt 0:00:08]} 4. Bg5 {[%emt 0:00:10]} dxe4 {[%emt 0:00:08]} 5. Nxe4 {[%emt 0:00:10]} Be7 {[%emt 0:00:09]} 6. Bxf6 {[%emt 0:00:07]} gxf6 {[%emt 0:00:08]} 7. Nc3 {[%emt 0:00:06]} c6 {[%emt 0:15:13]} 8. Qd2 {[%emt 0:03:38]} b5 {[%emt 0:05:22]} 9. O-O-O {[%emt 0:14:07]} b4 {[%emt 0:06:08]} 10. Nce2 {[%emt 0:08:13]} Qd5 {[%emt 0:09:37]} 11. Kb1 {[%emt 0:01:34]} e5 {[%emt 0:02:16]} 12. Nf3 {[%emt 0:07:02]} Be6 {[%emt 0:01:15]} 13. b3 {[%emt 0:05:28]} Nd7 {[%emt 0:07:55]} 14. c4 {[%emt 0:15:49]} bxc3 {[%emt 0:03:40]} 15. Nxc3 {[%emt 0:00:09]} Qa5 {[%emt 0:02:04]} 16. d5 {[%emt 0:01:11]} cxd5 {[%emt 0:13:13]} 17. Nxd5 {[%emt 0:00:17]} Qxd5 {[%emt 0:01:20]} 18. Qxd5 {[%emt 0:00:10]} Bxd5 {[%emt 0:00:04]} 19. Rxd5 {[%emt 0:00:09]} O-O-O {[%emt 0:02:11]} 20. Bd3 {[%emt 0:06:34]} Nc5 {[%emt 0:07:58]} 21. Bf5+ {[%emt 0:01:02]} Kb8 {[%emt 0:01:58]} 22. Rxd8+ {[%emt 0:03:43]} Rxd8 {[%emt 0:01:21]} 23. Kc2 {[%emt 0:03:33]} h6 {[%emt 0:01:55]} 24. Rd1 {[%emt 0:01:20]} Ne6 {[%emt 0:01:47]} 25. Rxd8+ {[%emt 0:01:24]} Bxd8 {[%emt 0:00:18]} 26. Kd2 {[%emt 0:07:15]} Ba5+ {[%emt 0:04:03]} 27. Ke3 {[%emt 0:03:24]} Bb6+ {[%emt 0:02:55]} 28. Ke2 {[%emt 0:00:10]} Kc7 {[%emt 0:04:22]} 29. g3 {[%emt 0:05:42]} Nd4+ {[%emt 0:01:56]} 30. Nxd4 {[%emt 0:00:08]} Bxd4 {[%emt 0:00:25]} 31. Bd3 {[%emt 0:02:58]} Kd6 {[%emt 0:01:17]} 32. g4 {[%emt 0:00:36]} Bb2 {[%emt 0:02:30]} 33. Bc4 {[%emt 0:00:21]} Ke7 {[%emt 0:00:27]} 34. Kd3 {[%emt 0:00:57]} a5 {[%emt 0:01:09]} 35. Ke4 {[%emt 0:00:37]} Bc1 {[%emt 0:01:35]} 36. h3 {[%emt 0:03:28]} Ba3 {[%emt 0:00:42]} 37. Kd5 {[%emt 0:00:14]} Kd7 {[%emt 0:00:32]} 38. f3 {[%emt 0:00:45]} Bb4 {[%emt 0:00:24]} 39. Bb5+ {[%emt 0:01:26]} Ke7 {[%emt 0:00:21]} 40. Bc6 {[%emt 0:00:00]} Ba3 {[%emt 0:00:00]} 41. Kc4 {[%emt 0:01:20]} f5 {[%emt 0:05:06]} 42. gxf5 {[%emt 0:03:43]} f6 {[%emt 0:00:30]} 43. Kb5 {[%emt 0:02:40]} Bb4 {[%emt 0:01:08]} 44. a3 {[%emt 0:01:42]} Bxa3 {[%emt 0:00:04]} 45. Kxa5 {[%emt 0:00:06]} Kd6 {[%emt 0:00:08]} 46. Kb5 {[%emt 0:00:53]} h5 {[%emt 0:03:46]} 47. Be8 {[%emt 0:00:50]} h4 {[%emt 0:00:17]} 1/2-1/2